[Event "Early-Titled-Tuesday-Blitz-October-17-2023"]
[Site "Chess.com"]
[Date "2023.10.17"]
[Round "4"]
[White "Resignify"]
[Black "GradualismUnleashed"]
[Result "0-1"]
[WhiteElo "2363"]
[BlackElo "2623"]
[TimeControl "180+1"]
[EndTime "8:41:09 PDT"]
[Termination "GradualismUnleashed won on time"]

1. e4 {[%clk 0:03:00.9]} 1... c5 {[%clk 0:02:59.2]} 2. Nc3 {[%clk 0:03:00.7]}
2... a6 {[%clk 0:02:59.2]} 3. g3 {[%clk 0:03:01.1]} 3... b5 {[%clk 0:02:59.5]}
4. d3 {[%clk 0:03:01.2]} 4... Bb7 {[%clk 0:02:59.9]} 5. Bg2 {[%clk 0:03:01.6]}
5... e6 {[%clk 0:03:00.4]} 6. Nf3 {[%clk 0:03:01.4]} 6... Nf6 {[%clk 0:02:51.1]}
7. O-O {[%clk 0:03:01.1]} 7... d5 {[%clk 0:02:48.1]} 8. exd5 {[%clk 0:02:55.9]}
8... Nxd5 {[%clk 0:02:48.4]} 9. Bd2 {[%clk 0:02:44.8]} 9... Be7 {[%clk
0:02:47.6]} 10. Re1 {[%clk 0:02:42.5]} 10... O-O {[%clk 0:02:46.7]} 11. a3
{[%clk 0:02:39.7]} 11... Bf6 {[%clk 0:02:40]} 12. Rb1 {[%clk 0:02:29.4]} 12...
Nc6 {[%clk 0:02:37.7]} 13. Ne4 {[%clk 0:02:22.4]} 13... Be7 {[%clk 0:02:34]} 14.
c3 {[%clk 0:02:18.2]} 14... h6 {[%clk 0:02:30.4]} 15. Bc1 {[%clk 0:01:58.1]}
15... Qd7 {[%clk 0:02:23.6]} 16. Qc2 {[%clk 0:01:46.6]} 16... Rac8 {[%clk
0:02:22.5]} 17. h4 {[%clk 0:01:37.1]} 17... f5 {[%clk 0:02:09.6]} 18. Ned2
{[%clk 0:01:34.7]} 18... Bf6 {[%clk 0:02:10]} 19. Nf1 {[%clk 0:01:28.8]} 19...
e5 {[%clk 0:02:03.5]} 20. Ne3 {[%clk 0:01:22.4]} 20... Nd4 {[%clk 0:01:51.4]}
21. Nxd4 {[%clk 0:00:17.6]} 21... cxd4 {[%clk 0:01:42.4]} 22. Nxd5 {[%clk
0:00:17.4]} 22... Bxd5 {[%clk 0:01:42.2]} 23. Bxd5+ {[%clk 0:00:18]} 23... Qxd5
{[%clk 0:01:42]} 24. Bd2 {[%clk 0:00:17]} 24... a5 {[%clk 0:01:27.2]} 25. c4
{[%clk 0:00:17.1]} 25... bxc4 {[%clk 0:01:26.4]} 26. dxc4 {[%clk 0:00:18]} 26...
e4 {[%clk 0:01:20.7]} 27. cxd5 {[%clk 0:00:16]} 27... Rxc2 {[%clk 0:01:20.6]}
28. Bxa5 {[%clk 0:00:16.3]} 28... d3 {[%clk 0:01:18.1]} 29. d6 {[%clk
0:00:13.5]} 29... Rf7 {[%clk 0:01:04.5]} 30. Rec1 {[%clk 0:00:04.3]} 30... Bxb2
{[%clk 0:00:52.4]} 31. Rxb2 {[%clk 0:00:02.3]} 31... Rxb2 {[%clk 0:00:52.5]} 32.
Rc8+ {[%clk 0:00:01.9]} 32... Kh7 {[%clk 0:00:50.9]} 33. Rc7 {[%clk 0:00:01.4]}
33... Rxc7 {[%clk 0:00:25.5]} 34. dxc7 {[%clk 0:00:01.9]} 34... Rc2 {[%clk
0:00:24.6]} 35. Kf1 {[%clk 0:00:02.3]} 35... Kg8 {[%clk 0:00:24.4]} 36. Ke1
{[%clk 0:00:02.2]} 36... Kf7 {[%clk 0:00:24.2]} 0-1

[Event "Early-Titled-Tuesday-Blitz-October-17-2023"]
[Site "Chess.com"]
[Date "2023.10.17"]
[Round "4"]
[White "lolo9292"]
[Black "Tsyhanchuk_Stanislav"]
[Result "1-0"]
[WhiteElo "2184"]
[BlackElo "2441"]
[TimeControl "180+1"]
[EndTime "8:41:09 PDT"]
[Termination "lolo9292 won on time"]

1. Nf3 {[%clk 0:03:00.9]} 1... Nf6 {[%clk 0:02:59.7]} 2. c4 {[%clk 0:02:49.1]}
2... e6 {[%clk 0:02:58.2]} 3. Nc3 {[%clk 0:02:43.7]} 3... d5 {[%clk 0:02:56.6]}
4. e3 {[%clk 0:02:43.4]} 4... a6 {[%clk 0:02:51.9]} 5. b3 {[%clk 0:02:43.1]}
5... c5 {[%clk 0:02:42.4]} 6. Bb2 {[%clk 0:02:43.5]} 6... d4 {[%clk 0:02:37.1]}
7. Ne2 {[%clk 0:02:32.2]} 7... dxe3 {[%clk 0:02:15.3]} 8. fxe3 {[%clk
0:02:30.4]} 8... Nc6 {[%clk 0:02:10.4]} 9. d4 {[%clk 0:02:22]} 9... Bd6 {[%clk
0:02:07.3]} 10. Nc3 {[%clk 0:02:04.6]} 10... O-O {[%clk 0:01:56.2]} 11. Bd3
{[%clk 0:02:04.3]} 11... cxd4 {[%clk 0:01:52]} 12. exd4 {[%clk 0:02:03.7]} 12...
Bf4 {[%clk 0:01:51.7]} 13. Ne4 {[%clk 0:01:45.3]} 13... Nxe4 {[%clk 0:01:38.7]}
14. Bxe4 {[%clk 0:01:46.2]} 14... f5 {[%clk 0:01:35.6]} 15. Bxc6 {[%clk
0:01:42.9]} 15... bxc6 {[%clk 0:01:34.5]} 16. O-O {[%clk 0:01:43.4]} 16... Bb7
{[%clk 0:01:11.7]} 17. c5 {[%clk 0:01:39.4]} 17... Qd5 {[%clk 0:00:58.7]} 18.
Bc1 {[%clk 0:01:34.5]} 18... Bxc1 {[%clk 0:00:53.3]} 19. Rxc1 {[%clk 0:01:35.4]}
19... Rad8 {[%clk 0:00:50.1]} 20. Re1 {[%clk 0:01:35.3]} 20... Bc8 {[%clk
0:00:41.1]} 21. Re5 {[%clk 0:01:32.3]} 21... Qd7 {[%clk 0:00:41.2]} 22. Qe2
{[%clk 0:01:30.6]} 22... h6 {[%clk 0:00:39.2]} 23. h4 {[%clk 0:01:28.9]} 23...
Qf7 {[%clk 0:00:32.7]} 24. Rf1 {[%clk 0:01:17.7]} 24... Qg6 {[%clk 0:00:29.3]}
25. b4 {[%clk 0:01:13.8]} 25... Qg4 {[%clk 0:00:27.9]} 26. Qe3 {[%clk
0:01:03.2]} 26... Rf6 {[%clk 0:00:22.4]} 27. Rf2 {[%clk 0:00:59.1]} 27... Rg6
{[%clk 0:00:20.5]} 28. Qd3 {[%clk 0:00:58.7]} 28... Qf4 {[%clk 0:00:15.8]} 29.
Qe3 {[%clk 0:00:56.9]} 29... Qg4 {[%clk 0:00:13.1]} 30. a3 {[%clk 0:00:53.1]}
30... Kh7 {[%clk 0:00:11.8]} 31. Qb3 {[%clk 0:00:47.4]} 31... Rf6 {[%clk
0:00:08.3]} 32. Qa4 {[%clk 0:00:45.8]} 32... Bb7 {[%clk 0:00:06.7]} 33. Qd1
{[%clk 0:00:43.7]} 33... Rf7 {[%clk 0:00:04.9]} 34. Qe1 {[%clk 0:00:43.6]} 34...
Qf4 {[%clk 0:00:04.7]} 35. Rxe6 {[%clk 0:00:39.7]} 35... Rxd4 {[%clk 0:00:02.2]}
36. Nxd4 {[%clk 0:00:38.5]} 36... Qxd4 {[%clk 0:00:03.1]} 37. Re7 {[%clk
0:00:38.5]} 37... Rxe7 {[%clk 0:00:02.4]} 38. Qxe7 {[%clk 0:00:38.5]} 38... Qa1+
{[%clk 0:00:02]} 39. Kh2 {[%clk 0:00:37.5]} 39... Bc8 {[%clk 0:00:01.7]} 40. Qf8
{[%clk 0:00:36.6]} 40... Be6 {[%clk 0:00:01.4]} 41. Qd6 {[%clk 0:00:34.8]} 1-0

[Event "Early-Titled-Tuesday-Blitz-October-17-2023"]
[Site "Chess.com"]
[Date "2023.10.17"]
[Round "4"]
[White "GMaka"]
[Black "Tagliata"]
[Result "1-0"]
[WhiteElo "2453"]
[BlackElo "2123"]
[TimeControl "180+1"]
[EndTime "8:41:09 PDT"]
[Termination "GMaka won by resignation"]

1. d4 {[%clk 0:02:58.2]} 1... d5 {[%clk 0:02:59.7]} 2. Nc3 {[%clk 0:02:55.9]}
2... Nf6 {[%clk 0:02:59.1]} 3. Bf4 {[%clk 0:02:56.2]} 3... c5 {[%clk 0:02:56.3]}
4. e3 {[%clk 0:02:55.6]} 4... cxd4 {[%clk 0:02:55.6]} 5. exd4 {[%clk 0:02:53.1]}
5... a6 {[%clk 0:02:50.7]} 6. Nf3 {[%clk 0:02:49.3]} 6... Nc6 {[%clk 0:02:50.6]}
7. Be2 {[%clk 0:02:39.4]} 7... Bf5 {[%clk 0:02:46.3]} 8. O-O {[%clk 0:02:38.8]}
8... h6 {[%clk 0:02:45.4]} 9. Ne5 {[%clk 0:02:31.2]} 9... e6 {[%clk 0:02:40.9]}
10. Nxc6 {[%clk 0:02:31.3]} 10... bxc6 {[%clk 0:02:39.9]} 11. Na4 {[%clk
0:02:32.1]} 11... Ne4 {[%clk 0:02:29.9]} 12. Bd3 {[%clk 0:02:26]} 12... Be7
{[%clk 0:02:20.7]} 13. f3 {[%clk 0:02:22.4]} 13... Nd6 {[%clk 0:02:16]} 14. Bxd6
{[%clk 0:02:22.3]} 14... Qxd6 {[%clk 0:02:12.1]} 15. Bxf5 {[%clk 0:02:21.9]}
15... exf5 {[%clk 0:02:13]} 16. Nc5 {[%clk 0:02:10.2]} 16... O-O {[%clk
0:02:11.7]} 17. f4 {[%clk 0:02:05]} 17... a5 {[%clk 0:02:05.9]} 18. a4 {[%clk
0:02:01.1]} 18... Qc7 {[%clk 0:01:55.6]} 19. Nd3 {[%clk 0:01:58.1]} 19... Bf6
{[%clk 0:01:52]} 20. c3 {[%clk 0:01:58.1]} 20... Rab8 {[%clk 0:01:50.7]} 21. Re1
{[%clk 0:01:57]} 21... Rfe8 {[%clk 0:01:51.1]} 22. Rxe8+ {[%clk 0:01:38]} 22...
Rxe8 {[%clk 0:01:52]} 23. Qd2 {[%clk 0:01:38.5]} 23... Re4 {[%clk 0:01:51.7]}
24. g3 {[%clk 0:01:31.6]} 24... Qe7 {[%clk 0:01:39.4]} 25. Kf2 {[%clk
0:01:22.1]} 25... Qe8 {[%clk 0:01:23.6]} 26. Nc5 {[%clk 0:01:18.4]} 26... Re7
{[%clk 0:01:23.5]} 27. Re1 {[%clk 0:01:19]} 27... g6 {[%clk 0:01:17.5]} 28. Rxe7
{[%clk 0:01:08.5]} 28... Qxe7 {[%clk 0:01:18.4]} 29. Qe2 {[%clk 0:01:07]} 29...
Qd8 {[%clk 0:00:55.3]} 30. Qa6 {[%clk 0:01:06]} 30... Qc7 {[%clk 0:00:54.6]} 31.
Qb7 {[%clk 0:01:04.5]} 31... Qd6 {[%clk 0:00:49.5]} 32. Qd7 {[%clk 0:01:03.7]}
32... Qxd7 {[%clk 0:00:49.1]} 33. Nxd7 {[%clk 0:01:03.8]} 33... Be7 {[%clk
0:00:42.5]} 34. Ne5 {[%clk 0:01:03.5]} 34... c5 {[%clk 0:00:42.8]} 35. Nc6
{[%clk 0:01:03.9]} 35... Bd6 {[%clk 0:00:39.5]} 36. Nxa5 {[%clk 0:00:54.1]}
36... cxd4 {[%clk 0:00:39.5]} 37. cxd4 {[%clk 0:00:55]} 37... Kf8 {[%clk
0:00:32.3]} 38. Nc6 {[%clk 0:00:54.5]} 38... Ke8 {[%clk 0:00:29.3]} 39. b4
{[%clk 0:00:55]} 39... f6 {[%clk 0:00:27.9]} 40. b5 {[%clk 0:00:53.8]} 40... Kd7
{[%clk 0:00:27.9]} 41. a5 {[%clk 0:00:49.8]} 41... Bc7 {[%clk 0:00:23.5]} 42. a6
{[%clk 0:00:37.8]} 42... Kc8 {[%clk 0:00:20.1]} 43. Ne7+ {[%clk 0:00:37.7]}
43... Kb8 {[%clk 0:00:20.7]} 44. Nxd5 {[%clk 0:00:38.3]} 44... Bd6 {[%clk
0:00:20.1]} 45. b6 {[%clk 0:00:38.3]} 45... Ba3 {[%clk 0:00:16.8]} 46. a7+
{[%clk 0:00:37.7]} 46... Kb7 {[%clk 0:00:16]} 47. Nc7 {[%clk 0:00:38.4]} 1-0

[Event "Early-Titled-Tuesday-Blitz-October-17-2023"]
[Site "Chess.com"]
[Date "2023.10.17"]
[Round "4"]
[White "Maect19"]
[Black "MMAHDI2013"]
[Result "1/2-1/2"]
[WhiteElo "2226"]
[BlackElo "2474"]
[TimeControl "180+1"]
[EndTime "8:41:10 PDT"]
[Termination "Game drawn by repetition"]

1. d4 {[%clk 0:03:00.9]} 1... Nf6 {[%clk 0:02:55.9]} 2. Nf3 {[%clk 0:03:00.5]}
2... e6 {[%clk 0:02:56.1]} 3. e3 {[%clk 0:02:57.3]} 3... d5 {[%clk 0:02:53]} 4.
Bd3 {[%clk 0:02:57.1]} 4... Bd6 {[%clk 0:02:49.3]} 5. O-O {[%clk 0:02:56.9]}
5... O-O {[%clk 0:02:47.8]} 6. b3 {[%clk 0:02:56.9]} 6... b6 {[%clk 0:02:47]} 7.
Bb2 {[%clk 0:02:56.8]} 7... Bb7 {[%clk 0:02:47.5]} 8. Nbd2 {[%clk 0:02:57]} 8...
Nbd7 {[%clk 0:02:47.8]} 9. c4 {[%clk 0:02:52.8]} 9... c5 {[%clk 0:02:44.7]} 10.
Rc1 {[%clk 0:02:51.7]} 10... Rc8 {[%clk 0:02:36.3]} 11. Qe2 {[%clk 0:02:50.9]}
11... Ne4 {[%clk 0:02:27.4]} 12. Ne5 {[%clk 0:02:39.2]} 12... Nxd2 {[%clk
0:01:30.8]} 13. Qxd2 {[%clk 0:02:35.4]} 13... Nxe5 {[%clk 0:01:30.8]} 14. dxe5
{[%clk 0:02:34.7]} 14... Be7 {[%clk 0:01:31.4]} 15. Rfd1 {[%clk 0:02:26]} 15...
Qc7 {[%clk 0:01:15.4]} 16. Qe2 {[%clk 0:02:23.4]} 16... g6 {[%clk 0:01:12.3]}
17. cxd5 {[%clk 0:02:10.2]} 17... Bxd5 {[%clk 0:01:10.5]} 18. e4 {[%clk
0:02:01.1]} 18... Bb7 {[%clk 0:01:08.5]} 19. f4 {[%clk 0:02:00.5]} 19... Rcd8
{[%clk 0:00:54.4]} 20. f5 {[%clk 0:01:57.8]} 20... Bg5 {[%clk 0:00:52.8]} 21.
Rb1 {[%clk 0:01:25]} 21... Bf4 {[%clk 0:00:51.4]} 22. Bc4 {[%clk 0:01:15.9]}
22... Bxe5 {[%clk 0:00:34.1]} 23. fxe6 {[%clk 0:01:13.6]} 23... fxe6 {[%clk
0:00:31.8]} 24. Bxe6+ {[%clk 0:01:11.3]} 24... Kh8 {[%clk 0:00:32.4]} 25. Bd5
{[%clk 0:01:05.3]} 25... Bxd5 {[%clk 0:00:29.1]} 26. exd5 {[%clk 0:00:54.6]}
26... Bxb2 {[%clk 0:00:28.6]} 27. Qxb2+ {[%clk 0:00:53.3]} 27... Qg7 {[%clk
0:00:28.8]} 28. Qxg7+ {[%clk 0:00:50.1]} 28... Kxg7 {[%clk 0:00:29.7]} 29. Rb2
{[%clk 0:00:50]} 29... Rf5 {[%clk 0:00:20.5]} 30. d6 {[%clk 0:00:46.7]} 30...
Rf6 {[%clk 0:00:19.3]} 31. Rbd2 {[%clk 0:00:40.4]} 31... Kf7 {[%clk 0:00:18.6]}
32. g3 {[%clk 0:00:33.5]} 32... Rd7 {[%clk 0:00:17.5]} 33. Kg2 {[%clk 0:00:33]}
33... h5 {[%clk 0:00:17.2]} 34. h4 {[%clk 0:00:32.1]} 34... Rf5 {[%clk
0:00:14.7]} 35. Re2 {[%clk 0:00:27.9]} 35... Rf6 {[%clk 0:00:14.9]} 36. Red2
{[%clk 0:00:25.9]} 36... Re6 {[%clk 0:00:14.9]} 37. Rf1+ {[%clk 0:00:24]} 37...
Rf6 {[%clk 0:00:14.3]} 38. Rfd1 {[%clk 0:00:22.6]} 1/2-1/2

[Event "Early-Titled-Tuesday-Blitz-October-17-2023"]
[Site "Chess.com"]
[Date "2023.10.17"]
[Round "4"]
[White "KatakuriDono"]
[Black "RandomNoob04"]
[Result "1-0"]
[WhiteElo "2399"]
[BlackElo "2611"]
[TimeControl "180+1"]
[EndTime "8:41:12 PDT"]
[Termination "KatakuriDono won on time"]

1. d4 {[%clk 0:03:00.9]} 1... Nf6 {[%clk 0:02:59.8]} 2. c4 {[%clk 0:03:01]} 2...
c5 {[%clk 0:03:00.4]} 3. d5 {[%clk 0:03:00.8]} 3... b5 {[%clk 0:03:00.5]} 4. Qc2
{[%clk 0:03:01.3]} 4... Bb7 {[%clk 0:02:59.1]} 5. e4 {[%clk 0:02:59.2]} 5...
bxc4 {[%clk 0:02:57.2]} 6. Bxc4 {[%clk 0:02:58.2]} 6... e6 {[%clk 0:02:57.6]} 7.
Nc3 {[%clk 0:02:56.1]} 7... exd5 {[%clk 0:02:57.3]} 8. exd5 {[%clk 0:02:56.3]}
8... d6 {[%clk 0:02:57.6]} 9. Nf3 {[%clk 0:02:53.8]} 9... Nbd7 {[%clk
0:02:57.8]} 10. O-O {[%clk 0:02:50.3]} 10... Be7 {[%clk 0:02:58.3]} 11. b3
{[%clk 0:02:41.8]} 11... O-O {[%clk 0:02:58.4]} 12. h3 {[%clk 0:02:38.8]} 12...
Nb6 {[%clk 0:02:55.7]} 13. Rd1 {[%clk 0:02:36.6]} 13... Re8 {[%clk 0:02:55.6]}
14. Bf4 {[%clk 0:02:34.9]} 14... a6 {[%clk 0:02:47.2]} 15. a4 {[%clk 0:02:34.1]}
15... Nfd7 {[%clk 0:02:33.4]} 16. a5 {[%clk 0:02:30.6]} 16... Nc8 {[%clk
0:02:34]} 17. Re1 {[%clk 0:02:26.7]} 17... Bf6 {[%clk 0:02:32]} 18. Rxe8+ {[%clk
0:02:25.6]} 18... Qxe8 {[%clk 0:02:32.9]} 19. Re1 {[%clk 0:02:25.6]} 19... Qd8
{[%clk 0:02:32.7]} 20. Ne4 {[%clk 0:02:21.6]} 20... Qxa5 {[%clk 0:02:30.6]} 21.
Nxf6+ {[%clk 0:01:55.3]} 21... Nxf6 {[%clk 0:02:30.5]} 22. Bg5 {[%clk
0:01:55.2]} 22... Nb6 {[%clk 0:02:15.9]} 23. Bxf6 {[%clk 0:01:43.1]} 23... gxf6
{[%clk 0:02:16.8]} 24. Qf5 {[%clk 0:01:42.1]} 24... Nxc4 {[%clk 0:02:04.6]} 25.
bxc4 {[%clk 0:01:39.8]} 25... Qd8 {[%clk 0:02:02.7]} 26. Nd2 {[%clk 0:01:29.3]}
26... Bc8 {[%clk 0:01:57.4]} 27. Qf4 {[%clk 0:01:24.7]} 27... f5 {[%clk
0:01:51.4]} 28. Nf3 {[%clk 0:01:21.6]} 28... Qf6 {[%clk 0:01:29.9]} 29. Nh4
{[%clk 0:00:52.3]} 29... Bd7 {[%clk 0:01:23.3]} 30. Rb1 {[%clk 0:00:44]} 30...
a5 {[%clk 0:00:59.1]} 31. Rb6 {[%clk 0:00:43.1]} 31... Qa1+ {[%clk 0:00:58.4]}
32. Kh2 {[%clk 0:00:42.5]} 32... Qe5 {[%clk 0:00:59.3]} 33. Kg3 {[%clk
0:00:36.6]} 33... a4 {[%clk 0:00:53.9]} 34. Rxd6 {[%clk 0:00:34.9]} 34... Qxf4+
{[%clk 0:00:53.4]} 35. Kxf4 {[%clk 0:00:35.5]} 35... a3 {[%clk 0:00:54.3]} 36.
Rxd7 {[%clk 0:00:27.9]} 36... a2 {[%clk 0:00:54.4]} 37. Nxf5 {[%clk 0:00:27.1]}
37... a1=Q {[%clk 0:00:54.6]} 38. Nh6+ {[%clk 0:00:27.4]} 1-0

[Event "Early-Titled-Tuesday-Blitz-October-17-2023"]
[Site "Chess.com"]
[Date "2023.10.17"]
[Round "4"]
[White "Ishowmoves57"]
[Black "Cambek64"]
[Result "0-1"]
[WhiteElo "2217"]
[BlackElo "2409"]
[TimeControl "180+1"]
[EndTime "8:41:14 PDT"]
[Termination "Cambek64 won by resignation"]

1. e4 {[%clk 0:02:56.9]} 1... e6 {[%clk 0:03:00.6]} 2. d4 {[%clk 0:02:56.5]}
2... d5 {[%clk 0:03:01]} 3. Bd3 {[%clk 0:02:56.8]} 3... c6 {[%clk 0:02:59.3]} 4.
Nf3 {[%clk 0:02:55]} 4... b6 {[%clk 0:02:58.6]} 5. O-O {[%clk 0:02:55.1]} 5...
Ba6 {[%clk 0:02:58]} 6. Qe2 {[%clk 0:02:53.8]} 6... Bxd3 {[%clk 0:02:56.9]} 7.
Qxd3 {[%clk 0:02:54.7]} 7... Nf6 {[%clk 0:02:56.6]} 8. e5 {[%clk 0:02:54.1]}
8... Nfd7 {[%clk 0:02:56.4]} 9. c4 {[%clk 0:02:53.6]} 9... Be7 {[%clk
0:02:55.1]} 10. Rd1 {[%clk 0:02:50.1]} 10... O-O {[%clk 0:02:55.2]} 11. Be3
{[%clk 0:02:49.3]} 11... Qc8 {[%clk 0:02:51.7]} 12. Na3 {[%clk 0:02:43.4]} 12...
a6 {[%clk 0:02:50.4]} 13. Rac1 {[%clk 0:02:38.8]} 13... Qb7 {[%clk 0:02:49.8]}
14. Nc2 {[%clk 0:02:38.2]} 14... b5 {[%clk 0:02:49.7]} 15. c5 {[%clk 0:02:38.2]}
15... a5 {[%clk 0:02:50]} 16. Nce1 {[%clk 0:02:28.8]} 16... a4 {[%clk
0:02:43.8]} 17. Ng5 {[%clk 0:02:20.2]} 17... Bxg5 {[%clk 0:02:40.3]} 18. Bxg5
{[%clk 0:02:21.1]} 18... Re8 {[%clk 0:02:28.3]} 19. Qg3 {[%clk 0:02:11.6]} 19...
Nf8 {[%clk 0:02:27.9]} 20. h4 {[%clk 0:02:08.4]} 20... Nbd7 {[%clk 0:02:26.5]}
21. h5 {[%clk 0:01:55.1]} 21... Kh8 {[%clk 0:02:21.7]} 22. Bf6 {[%clk
0:01:39.6]} 22... gxf6 {[%clk 0:02:17.1]} 23. exf6 {[%clk 0:01:30.6]} 23... Nxf6
{[%clk 0:02:13.9]} 24. Qe5 {[%clk 0:01:27.3]} 24... Nd7 {[%clk 0:02:13.3]} 25.
Qd6 {[%clk 0:01:25.2]} 25... Ne4 {[%clk 0:01:56.9]} 26. Qf4 {[%clk 0:01:21.9]}
26... f5 {[%clk 0:01:43.2]} 27. Nf3 {[%clk 0:01:16.3]} 27... Re7 {[%clk
0:01:24.9]} 28. Ne5 {[%clk 0:01:04.4]} 28... Nxe5 {[%clk 0:01:01]} 29. Qxe5+
{[%clk 0:01:03.6]} 29... Kg8 {[%clk 0:01:01.3]} 30. f3 {[%clk 0:00:49.4]} 30...
Ng5 {[%clk 0:01:00.4]} 31. Kf2 {[%clk 0:00:31.8]} 31... Rf8 {[%clk 0:00:55.7]}
32. Rg1 {[%clk 0:00:31.6]} 32... Qb8 {[%clk 0:00:51.2]} 33. Qe3 {[%clk
0:00:20.7]} 33... f4 {[%clk 0:00:45.3]} 34. Qe2 {[%clk 0:00:19.2]} 34... e5
{[%clk 0:00:45]} 35. dxe5 {[%clk 0:00:18.1]} 35... Qxe5 {[%clk 0:00:43.6]} 36.
Qd3 {[%clk 0:00:17.2]} 36... Qe3+ {[%clk 0:00:41.8]} 37. Qxe3 {[%clk 0:00:17.1]}
37... Rxe3 {[%clk 0:00:42.4]} 38. g3 {[%clk 0:00:16.1]} 38... Rxf3+ {[%clk
0:00:41.3]} 39. Ke2 {[%clk 0:00:15.9]} 39... Re8+ {[%clk 0:00:39.2]} 40. Kd2
{[%clk 0:00:15.2]} 40... Ne4+ {[%clk 0:00:36.7]} 41. Kc2 {[%clk 0:00:14.9]}
41... Nxg3 {[%clk 0:00:37.1]} 42. Kb1 {[%clk 0:00:14.1]} 42... Re2 {[%clk
0:00:36.6]} 0-1

[Event "Early-Titled-Tuesday-Blitz-October-17-2023"]
[Site "Chess.com"]
[Date "2023.10.17"]
[Round "4"]
[White "AvitalBor"]
[Black "MasterKroket"]
[Result "1-0"]
[WhiteElo "2830"]
[BlackElo "2550"]
[TimeControl "180+1"]
[EndTime "8:41:17 PDT"]
[Termination "AvitalBor won by resignation"]

1. e4 {[%clk 0:03:00.9]} 1... e5 {[%clk 0:03:00]} 2. Nc3 {[%clk 0:02:57.3]} 2...
Nc6 {[%clk 0:02:59.8]} 3. g3 {[%clk 0:02:57.4]} 3... g6 {[%clk 0:02:52.3]} 4.
Bg2 {[%clk 0:02:56.5]} 4... Bg7 {[%clk 0:02:52.8]} 5. Nge2 {[%clk 0:02:55.4]}
5... Nge7 {[%clk 0:02:52.1]} 6. Nd5 {[%clk 0:02:54.8]} 6... O-O {[%clk
0:02:50.9]} 7. d3 {[%clk 0:02:54.2]} 7... Nxd5 {[%clk 0:02:46.4]} 8. exd5 {[%clk
0:02:54]} 8... Nb8 {[%clk 0:02:44.6]} 9. h4 {[%clk 0:02:52.1]} 9... d6 {[%clk
0:02:42.6]} 10. h5 {[%clk 0:02:51.8]} 10... Nd7 {[%clk 0:02:35.4]} 11. Nc3
{[%clk 0:02:46]} 11... Nf6 {[%clk 0:02:31.6]} 12. h6 {[%clk 0:02:42.8]} 12...
Bh8 {[%clk 0:02:31.4]} 13. Bg5 {[%clk 0:02:43.2]} 13... Qe8 {[%clk 0:02:18.6]}
14. Qe2 {[%clk 0:02:28.9]} 14... b5 {[%clk 0:02:01.1]} 15. O-O-O {[%clk
0:02:24]} 15... b4 {[%clk 0:02:00.3]} 16. Ne4 {[%clk 0:02:22.6]} 16... Nxe4
{[%clk 0:02:00.4]} 17. Bxe4 {[%clk 0:02:08.4]} 17... f5 {[%clk 0:01:58.3]} 18.
Bg2 {[%clk 0:02:07.2]} 18... a5 {[%clk 0:01:46.4]} 19. Rh4 {[%clk 0:01:55.4]}
19... Qb5 {[%clk 0:01:39.5]} 20. Rc4 {[%clk 0:01:37.9]} 20... Ra7 {[%clk
0:01:18.7]} 21. Kb1 {[%clk 0:01:27.2]} 21... a4 {[%clk 0:01:18.6]} 22. Bd2
{[%clk 0:01:27.2]} 22... b3 {[%clk 0:01:18.6]} 23. cxb3 {[%clk 0:01:22.4]} 23...
axb3 {[%clk 0:01:18.3]} 24. a3 {[%clk 0:01:22.9]} 24... e4 {[%clk 0:01:09]} 25.
Qe3 {[%clk 0:01:18.4]} 25... Qxd5 {[%clk 0:00:59.6]} 26. Bc3 {[%clk 0:01:11.4]}
26... Ba6 {[%clk 0:00:40.3]} 27. Qxa7 {[%clk 0:00:45.6]} 27... Bxc4 {[%clk
0:00:39.9]} 28. Bxh8 {[%clk 0:00:44.9]} 28... Bxd3+ {[%clk 0:00:38.2]} 29. Ka1
{[%clk 0:00:44.7]} 29... Kxh8 {[%clk 0:00:37.3]} 30. Qxc7 {[%clk 0:00:43.8]}
30... Qd4 {[%clk 0:00:28.1]} 31. Bf1 {[%clk 0:00:20.7]} 31... Kg8 {[%clk
0:00:16.8]} 32. Qe7 {[%clk 0:00:15.7]} 32... Ra8 {[%clk 0:00:14.6]} 33. Bxd3
{[%clk 0:00:12.5]} 33... exd3 {[%clk 0:00:14.8]} 34. Re1 {[%clk 0:00:08.9]}
34... d2 {[%clk 0:00:12.6]} 35. Qe6+ {[%clk 0:00:08.7]} 35... Kh8 {[%clk
0:00:11.8]} 36. Qe8+ {[%clk 0:00:08.1]} 1-0